[Event "FIDE Womens Grand Prix-I 2022-23"]
[Site "Nur-Sultan"]
[Date "2022.08.29"]
[Round "11.4"]
[White "Abdumalik, Zhansaya"]
[Black "Kashlinskaya, Alina"]
[Result "1-0"]
[ECO "C11"]
[WhiteElo "2503"]
[BlackElo "2491"]
[Annotator "TA"]
[PlyCount "95"]
[EventDate "2022.09.15"]
[EventType "tourn"]
[EventCountry "KAZ"]
[SourceTitle "playchess.com"]
[Source "ChessBase"]
[SourceQuality "1"]
[TimeControl "40/5400+30:1800+30"]

{[%evp 20,95,18,15,19,22,33,21,19,29,23,11,0,0,0,0,0,0,0,0,0,0,0,0,61,0,0,-2,0,0,0,0,90,72,263,116,281,274,352,45,27,32,183,120,337,53,57,0,0,0,710,719,704,717,691,721,725,695,669,661,651,635,714,704,1597,1569,844,844,814,814,29985,29986,29986,29987,29983,29984,29997,29998]} 1. e4 {[%emt 0:00:02]} e6 {[%emt 0:00:05]} 2. d4 {[%emt 0:00:10]} d5 {[%emt 0:00:05]} 3. Nc3 {[%emt 0:00:07]} Nf6 {[%emt 0:00:06]} 4. e5 {[%emt 0:00:06]} Nfd7 {[%emt 0:00:04]} 5. f4 {[%emt 0:00:13]} c5 {[%emt 0:00:08]} 6. Nf3 {[%emt 0:00:08]} Nc6 {[%emt 0:00:07]} 7. Be3 {[%emt 0:00:05]} cxd4 {[%emt 0:00:11]} 8. Nxd4 {[%emt 0:00:10]} Qb6 {[%emt 0:00:09]} 9. Qd2 {[%emt 0:02:39]} Qxb2 {[%emt 0:00:08]} 10. Rb1 {[%emt 0:00:08]} Qa3 {[%emt 0:00:04]} 11. Bb5 {[%emt 0:01:01] aiming for Rb3.} Nxd4 {[%emt 0:00:11] C11: French: Classical System: 4 e5 and 4 Bg5 dxe4.} 12. Bxd4 {[%emt 0:00:05][%cal Of4f5] Black should prevent f5!} ({Much weaker is} 12. Qxd4 a6 13. Bxd7+ Bxd7 14. Rxb7 Rc8 $17) 12... a6 {[%emt 0:00:10]} (12... Bb4 {is more complex.} 13. Rb3 Qa5 14. a3 Be7) 13. Bxd7+ {[%emt 0:00:06]} Bxd7 {[%emt 0:00:04] The position is equal.} 14. Rb3 {[%emt 0:00:06]} Qe7 {[%emt 0:00:10]} 15. Rxb7 {[%emt 0:00:25]} Rc8 {[%emt 0:00:11] [#] 15...Qh4+ gains popularity.} 16. g3 $5 $146 {[%emt 0:24:34][%mdl 8] New and interesting.} ({Predecessor:} 16. O-O Qd8 17. Qe3 Rc4 18. Rfb1 Be7 19. f5 Bg5 20. Qd3 O-O 21. R1b6 Bc6 22. Ra7 exf5 23. Rbxa6 {1-0 (47) So,W (2770)-Radjabov,T (2765) Paris 2021}) 16... Rc4 {[%emt 0:07:58]} 17. Ke2 {[%emt 0:08:45]} Qd8 $1 {[%emt 0:05:55] Strongly threatening ...Bb4.} 18. Rhb1 {[%emt 0:01:26] Against Bb4} Be7 {[%emt 0:19:10]} 19. Rb8 {[%emt 0:17:41]} Bc8 $1 {[%emt 0:00:33]} 20. Nd1 $36 {[%emt 0:01:01][%mdl 2048] White has some pressure.} O-O {[%emt 0:07:41]} 21. Ne3 {[%emt 0:00:44]} Ra4 {[%emt 0:03:43]} ({Better is} 21... Rc6 $1 $11) 22. c3 {[%emt 0:05:03]} ({White should try} 22. Ra8 $1 $14) 22... Qc7 $11 {[%emt 0:02:11]} 23. Kf3 {[%emt 0:04:23]} Bd7 {[%emt 0:05:27]} 24. R8b7 {[%emt 0:02:20]} Qd8 {[%emt 0:00:55]} 25. R1b6 {[%emt 0:02:01]} Bb5 {[%emt 0:02:56]} (25... Qc8 $11) 26. h4 {[%emt 0:02:55]} h5 $2 {[%emt 0:17:57]} (26... Bc4 $16) 27. Ra7 {[%emt 0:05:23]} (27. f5 $1 $18 {and the rest is easy.}) 27... Re8 $2 {[%emt 0:10:19]} (27... Bc4 $16 {was worth a try.}) 28. Rbb7 $18 {[%emt 0:04:11] f5 is the strong threat.} Bf8 {[%emt 0:02:44]} 29. Bb6 $2 {[%emt 0:03:47]} ({Only move:} 29. Rxf7 $18 Rxd4 30. Qxd4 (30. cxd4 Be7 $18)) 29... Qc8 $14 {[%emt 0:00:05][%cal Od5d4] Hoping for ...d4!} 30. Rc7 {[%emt 0:00:52] Chess con chili. Active counter play!} Qb8 {[%emt 0:00:01]} (30... Qd8 $1 $14) 31. Bd4 {[%emt 0:00:11]} (31. Rab7 $1 $18 {[%cal Rb7b8]} Qa8 32. Bd4 (32. Rxf7 $2 d4 $19)) 31... Qd8 {[%emt 0:04:42]} (31... Bc4 $16) 32. Qc2 $2 {[%emt 0:02:38]} (32. Rxf7 $18 Qa5 33. Rfb7) 32... Re7 {[%emt 0:00:45]} 33. Rxe7 {[%emt 0:01:31]} Bxe7 {[%emt 0:00:01]} 34. f5 {[%emt 0:00:08]} Bc6 $2 {[%emt 0:03:37][%mdl 8192] [#]} (34... Qe8 $11) 35. fxe6 $1 $18 {[%emt 0:05:10]} fxe6 {[%emt 0:00:03] [#]} 36. Qg6 $1 {[%emt 0:00:33][%csl LRe6,LRh5]} Qf8+ {[%emt 0:00:51] [#]} 37. Nf5 $1 {[%emt 0:00:52][%mdl 512]} Qxf5+ {[%emt 0:05:15]} 38. Qxf5 {[%emt 0:00:04]} exf5 {[%emt 0:00:03]} 39. Rxe7 {[%emt 0:00:05][%mdl 4096] Endgame KRB-KRB} Kf8 {[%emt 0:01:36]} 40. Rc7 {[%emt 0:01:26]} Bb5 {[%emt 0:01:52]} 41. e6 {[%emt 0:31:26]} Rxa2 {[%emt 0:15:28]} 42. Bxg7+ {[%emt 0:00:00]} Kg8 {[%emt 0:01:33]} 43. Kf4 {[%emt 0:00:00] White wants to mate with Bf6.} Re2 {[%emt 0:08:55]} 44. Be5 {[%emt 0:00:00]} Kf8 {[%emt 0:03:02]} 45. Kxf5 {[%emt 0:00:00] White mates.} Rf2+ {[%emt 0:00:23]} 46. Bf4 {[%emt 0:00:00]} Ke8 {[%emt 0:00:07]} 47. Kf6 {[%emt 0:00:00][%cal Rc7c8]} Kd8 {[%emt 0:00:05]} 48. e7+ {[%emt 0:00:00] Weighted Error Value: White=0.36/Black=0.53} 1-0

[Event "FIDE Womens Grand Prix-I 2022-23"]
[Site "Nur-Sultan"]
[Date "2022.08.29"]
[Round "11.5"]
[White "Kosteniuk, Alexandra"]
[Black "Lagno, Kateryna"]
[Result "1/2-1/2"]
[ECO "C47"]
[WhiteElo "2521"]
[BlackElo "2547"]
[Annotator "TA"]
[PlyCount "41"]
[EventDate "2022.09.15"]
[EventType "tourn"]
[EventCountry "KAZ"]
[SourceTitle "playchess.com"]
[Source "ChessBase"]
[SourceQuality "1"]
[TimeControl "40/5400+30:1800+30"]

{[%evp 22,41,9,0,0,0,0,0,0,0,0,0,0,0,0,0,0,0,0,0,0,0]} 1. e4 {[%emt 0:00:04]} e5 {[%emt 0:00:16]} 2. Nf3 {[%emt 0:00:11]} Nc6 {[%emt 0:00:16]} 3. Nc3 {[%emt 0:00:27]} Nf6 {[%emt 0:00:17]} 4. d4 {[%emt 0:00:25]} exd4 {[%emt 0:00:29]} 5. Nxd4 {[%emt 0:00:04]} Bb4 {[%emt 0:00:39]} 6. Nxc6 {[%emt 0:00:19]} bxc6 {[%emt 0:00:05]} 7. Bd3 {[%emt 0:00:12]} d5 {[%emt 0:00:39]} 8. exd5 {[%emt 0:00:13]} cxd5 {[%emt 0:00:24]} 9. O-O {[%emt 0:01:39]} O-O {[%emt 0:00:56]} 10. Bg5 {[%emt 0:01:49]} Be6 {[%emt 0:03:51]} 11. Qf3 {[%emt 0:06:47]} Be7 {[%emt 0:04:10]} 12. Rfe1 {[%emt 0:04:34] The position is equal.} h6 {[%emt 0:04:22] C47: Scotch Four Knights and Four Knights with 4 g3.} 13. Bxh6 {[%emt 0:05:34]} gxh6 {[%emt 0:02:45]} 14. Rxe6 {[%emt 0:00:28]} fxe6 {[%emt 0:00:29]} 15. Qg3+ $1 {[%emt 0:00:09]} Kh8 {[%emt 0:00:19]} 16. Qg6 {[%emt 0:00:10] [#]} Qe8 $146 {[%emt 0:01:32] [#] ...Qxg6 is the strong threat.} ({Predecessor:} 16... Re8 17. Qxh6+ Kg8 18. Qg5+ Kh8 19. Qh6+ Kg8 {½-½ (19) Macek,K (1910)-Cichy,M (2110) Sec u Chrudimi 2007}) 17. Qxh6+ {[%emt 0:00:07]} Kg8 {[%emt 0:00:03] White must now prevent ...Qh5.} 18. Qg5+ {[%emt 0:00:05]} Kh8 {[%emt 0:00:09] aiming for ...Qh5.} 19. Qh6+ {[%emt 0:00:05]} Kg8 {[%emt 0:00:03] Threatens to win with ...Qh5.} 20. Qg5+ {[%emt 0:00:05]} Kh8 {[%emt 0:00:08] [#] And now ...Qh5 would win.} 21. Qh6+ {[%emt 0:00:04] An interesting draw.  Weighted Error Value: White=0.01 (flawless) /Black=0.00 (flawless)} 1/2-1/2

[Event "FIDE Womens Grand Prix-I 2022-23"]
[Site "Nur-Sultan"]
[Date "2022.08.29"]
[Round "11.6"]
[White "Vaishali, Rameshbabu"]
[Black "Goryachkina, Aleksandra"]
[Result "1/2-1/2"]
[ECO "C67"]
[WhiteElo "2449"]
[BlackElo "2579"]
[Annotator "TA"]
[PlyCount "132"]
[EventDate "2022.09.15"]
[EventType "tourn"]
[EventCountry "KAZ"]
[SourceTitle "playchess.com"]
[Source "ChessBase"]
[SourceQuality "1"]
[TimeControl "40/5400+30:1800+30"]

{[%evp 9,132,10,16,0,0,-8,0,0,8,12,7,18,15,10,8,13,15,12,10,16,12,19,17,12,7,6,26,20,53,53,60,58,137,4,33,46,46,39,148,149,149,139,147,150,162,155,156,137,157,114,127,114,129,126,125,118,127,125,137,106,88,0,159,158,258,101,243,58,80,80,83,77,87,95,166,154,150,157,160,169,168,151,161,155,155,132,276,191,486,422,599,580,550,450,1395,1383,1346,1337,1337,1300,1189,1075,1070,384,438,0,0,0,0,0,0,0,0,0,0,0,0,0,0,0,0,0,0,0,0]} 1. e4 {[%emt 0:00:40]} e5 {[%emt 0:00:25]} 2. Nf3 {[%emt 0:00:04]} Nc6 {[%emt 0:00:15]} 3. Bb5 {[%emt 0:00:07]} Nf6 {[%emt 0:00:42][%cal Bg8f6,Bf6e4,Be4d6][%mdl 32]} 4. O-O {[%emt 0:00:49]} Nxe4 {[%emt 0:00:35]} 5. Re1 {[%emt 0:00:35]} Nd6 {[%emt 0:00:20]} 6. a4 {[%emt 0:00:26] C67: Ruy Lopez: Berlin Defence: 4 0-0 Nxe4.} Be7 {[%emt 0:01:39]} 7. Nc3 {[%emt 0:00:30] Against e4} a6 {[%emt 0:01:16]} 8. Bf1 {[%emt 0:00:23]} e4 {[%emt 0:01:12]} 9. Nxe4 {[%emt 0:00:06]} Nxe4 {[%emt 0:00:04]} 10. Rxe4 {[%emt 0:00:04]} d5 {[%emt 0:00:10]} 11. Re1 {[%emt 0:00:06]} Bg4 {[%emt 0:00:48]} 12. h3 {[%emt 0:01:35]} Bh5 {[%emt 0:02:09]} 13. Be2 {[%emt 0:05:16]} O-O {[%emt 0:03:30]} 14. d4 {[%emt 0:00:15]} Bd6 {[%emt 0:02:22]} 15. Ne5 {[%emt 0:01:35]} Bxe2 {[%emt 0:03:12]} 16. Rxe2 {[%emt 0:00:22] [#]} Ne7 $146 {[%emt 0:10:48]} ({Predecessor:} 16... Nxe5 17. dxe5 Be7 18. Rd2 c6 19. c4 Qa5 20. cxd5 cxd5 21. Rd3 Rfd8 22. Be3 Rac8 {½-½ (49) Harikrishna,P (2717)-So,W (2772) Berlin 2022}) 17. Bf4 {[%emt 0:16:10]} Nf5 {[%emt 0:05:07]} 18. Qd3 {[%emt 0:02:46]} Qc8 {[%emt 0:03:47]} 19. g4 {[%emt 0:06:52]} Ne7 {[%emt 0:04:10]} 20. Rae1 {[%emt 0:00:17]} f6 {[%emt 0:14:40] [#]} (20... f5 $14) 21. Nf3 {[%emt 0:24:13] White is much more active.} ({White must play} 21. Nd7 $1 $16 {[%cal Rd7f8][%mdl 512]} Qxd7 22. Bxd6 Qxd6 23. Rxe7) 21... Ng6 {[%emt 0:03:48]} 22. Bxd6 {[%emt 0:00:25]} cxd6 {[%emt 0:00:02]} 23. Qb3 {[%emt 0:05:12]} Nf4 {[%emt 0:03:51]} (23... Qc6 $14) 24. Re4 $1 $16 {[%emt 0:00:59]} Nxh3+ {[%emt 0:14:28]} 25. Kg2 {[%emt 0:00:47]} Ng5 {[%emt 0:00:40]} 26. Nxg5 {[%emt 0:00:21]} ({Don't do} 26. Qxd5+ Nf7 $16) 26... fxg5 {[%emt 0:00:07]} 27. Qxd5+ {[%emt 0:00:06]} Kh8 {[%emt 0:00:22]} 28. c3 {[%emt 0:01:44]} Qc6 {[%emt 0:10:01]} 29. Qxg5 {[%emt 0:14:12]} h6 {[%emt 0:00:49]} 30. Qe3 {[%emt 0:02:46]} Rf6 {[%emt 0:00:16]} 31. f4 {[%emt 0:08:26]} Raf8 {[%emt 0:00:25]} 32. Kg3 {[%emt 0:00:40]} Qxa4 {[%emt 0:00:57]} 33. f5 {[%emt 0:00:52]} Qb3 {[%emt 0:02:14]} 34. Re2 {[%emt 0:01:05]} Qd1 {[%emt 0:04:53]} 35. Re1 {[%emt 0:01:32]} (35. Re7 $142) 35... Qb3 {[%emt 0:00:02]} 36. Re6 $1 {[%emt 0:02:04] And now Rxf6 would win.} Kh7 {[%emt 0:01:59]} (36... Kg8 $16) 37. Re2 $2 {[%emt 0:01:39]} (37. Rxf6 $1 $18 Rxf6 38. Qe8 Qxb2 39. g5 hxg5 40. Rh1+ Rh6 41. Rxh6+ gxh6 42. Qg6+ Kh8 43. Qxh6+ Kg8 44. Qg6+ (44. Qxd6 Qxc3+ 45. Kg4 Qc6 $11) (44. Qxg5+ Kh8 $16) 44... Kf8 45. Qxd6+ Ke8 46. Qe5+ Kf7 47. Qe6+ Kf8 48. Qd6+ Ke8 49. Qe5+ Kf7 50. Qe6+ Kg7 51. Qe7+ Kg8 52. Qxg5+ Kf7 53. Qg6+ Ke7 54. Qe6+ Kf8 55. Qf6+ Kg8 56. Qd8+ Kh7 57. Qe7+ Kg8 58. Qe8+ Kh7 59. Qg6+ Kh8 60. Qf6+ Kh7 61. d5) 37... b5 {[%emt 0:00:29]} (37... Qb5 $16 {was called for.}) 38. Rf2 $2 {[%emt 0:02:52]} (38. Rxf6 $1 $18 Rxf6 39. Qe8) 38... b4 {[%emt 0:01:35] [#]} 39. cxb4 $1 {[%emt 0:00:23]} Qxe3+ {[%emt 0:04:27]} 40. Rxe3 {[%emt 0:00:02][%mdl 4096] Endgame KRR-KRR} Rb8 {[%emt 0:00:07]} 41. Rc2 {[%emt 0:05:01]} Kg8 {[%emt 0:08:57] [#]} (41... h5 $16 {keeps fighting.}) 42. b5 $1 $18 {[%emt 0:21:20]} axb5 {[%emt 0:01:46]} 43. Re6 {[%emt 0:00:30]} Rf7 {[%emt 0:07:24]} 44. Rxd6 {[%emt 0:00:35]} h5 {[%emt 0:00:15]} 45. Rc5 {[%emt 0:02:39]} hxg4 {[%emt 0:00:38]} 46. Kxg4 {[%emt 0:00:03]} b4 {[%emt 0:00:39]} 47. Rdc6 {[%emt 0:00:33] Strongly threatening Rc8+.} Kh7 {[%emt 0:02:28]} (47... Re7 $16) 48. Rc7 {[%emt 0:01:05]} Rff8 {[%emt 0:06:56]} (48... Rxc7 49. Rxc7 Rd8) 49. Rd5 {[%emt 0:00:26]} Rb6 {[%emt 0:02:47]} (49... Rbc8 $142) 50. Rdd7 {[%emt 0:00:11]} Rg8 {[%emt 0:01:02]} 51. Rb7 {[%emt 0:00:30]} Rxb7 {[%emt 0:01:46]} (51... Rc6 $142 52. Rxb4 Rc1) 52. Rxb7 {[%emt 0:00:02] f6 is the strong threat. KR-KR} Rf8 {[%emt 0:00:52]} 53. Rxb4 {[%emt 0:00:11]} g6 {[%emt 0:00:15]} 54. fxg6+ {[%emt 0:00:31]} Kxg6 {[%emt 0:00:01]} 55. Rb6+ {[%emt 0:00:11]} Kg7 {[%emt 0:00:11]} 56. d5 $2 {[%emt 0:04:28]} (56. Kg5 Rf1 57. Rb5) 56... Rf1 {[%emt 0:01:00]} 57. b4 $2 {[%emt 0:00:39]} (57. Rb4 $18) 57... Kf7 $1 $11 {[%emt 0:00:48] The position is equal.} 58. Rb7+ {[%emt 0:00:44]} Kf6 {[%emt 0:00:35]} 59. d6 {[%emt 0:00:31]} Ke6 {[%emt 0:00:37]} 60. d7 {[%emt 0:00:27]} Rd1 {[%emt 0:00:31]} 61. Kf4 {[%emt 0:00:24]} Rxd7 {[%emt 0:00:19]} 62. Rb6+ {[%emt 0:00:02]} Kd5 {[%emt 0:00:24]} 63. b5 {[%emt 0:00:04]} Kc5 {[%emt 0:00:09]} 64. Rb8 {[%emt 0:00:02]} Rd6 {[%emt 0:00:06]} 65. Ke5 {[%emt 0:00:04] Threatening mate with Rc8+.} Rb6 {[%emt 0:00:05]} 66. Rxb6 {[%emt 0:00:03]} Kxb6 {[%emt 0:00:03] White really could win this.  Weighted Error Value: White=0.38/Black=0.29 (precise)} 1/2-1/2